fUSD/lending_fUSD_20240718
["ID","MTS","AMOUNT","RATE_DAILY","PERIOD"]
[332526978,1721288046713,-550.97,0.00024657,2]
[332526979,1721288046725,-500.0,0.00024657,2]
[332526980,1721288046736,-1169.35,0.00024657,2]
[332526981,1721288046746,-500.0,0.00024657,2]
[332526982,1721288046755,-773.79,0.00024657,2]
[332526983,1721288046766,-1258.11,0.00024657,2]
[332526984,1721288046776,-556.49,0.00024657,2]
[332526985,1721288046786,-1541.61,0.00024657,2]
[332526986,1721288046796,-500.0,0.00024657,2]
[332526987,1721288046806,-923.36,0.00024657,2]
[332526988,1721288046815,-1497.76,0.00024657,2]
[332526989,1721288046826,-500.0,0.00024657,2]
[332526990,1721288046835,-500.0,0.00024657,2]
[332526991,1721288046846,-698.16,0.00024657,2]
[332526992,1721288046856,-1777.63,0.00024657,2]
[332526993,1721288046865,-1751.66,0.00024657,2]
[332526994,1721288046874,-500.0,0.00024657,2]
[332526995,1721288046884,-500.0,0.00024657,2]
[332526996,1721288046894,-1440.65,0.00024657,2]
[332526997,1721288046903,-748.62,0.00024657,2]
[332526998,1721288046913,-702.74,0.00024657,2]
[332526999,1721288046923,-500.0,0.00024657,2]
[332527000,1721288046933,-500.0,0.00024657,2]
[332527001,1721288046942,-600.34,0.00024657,2]
[332527002,1721288046952,-1459.37,0.00024657,2]
[332527003,1721288046962,-500.0,0.00024657,2]
[332527004,1721288046972,-834.65,0.00024657,2]
[332527005,1721288046982,-574.9,0.00024657,2]
[332527006,1721288046992,-967.34,0.00024657,2]
[332527007,1721288047001,-500.0,0.00024657,2]
[332527008,1721288047011,-945.46,0.00024657,2]
[332527009,1721288047021,-500.0,0.00024657,2]
[332527010,1721288047031,-6789.46,0.00024657,2]
[332527011,1721288047040,-500.0,0.00024657,2]
[332527012,1721288047050,-1649.03,0.00024657,2]
[332527013,1721288047060,-1351.16,0.00024657,2]
[332527014,1721288047070,-846.83,0.00024657,2]
[332527015,1721288047079,-3838.48,0.00024657,2]
[332527016,1721288047089,-727.83,0.00024657,2]
[332527017,1721288047099,-500.0,0.00024657,2]
[332527018,1721288047109,-1099.8,0.00024657,2]
[332527019,1721288047118,-592.88,0.00024657,2]
[332527020,1721288047128,-500.0,0.00024657,2]
[332527021,1721288047138,-758.27,0.00024657,2]
[332527022,1721288047148,-1314.69,0.00024657,2]
[332527023,1721288047158,-660.25,0.00024657,2]
[332527024,1721288047168,-1225.2,0.00024657,2]
[332527025,1721288047178,-690.8,0.00024657,2]
[332527026,1721288047188,-606.01361856,0.00024657,2]
[332527027,1721288047198,-815.9,0.00024657,2]
[332527028,1721288047208,-500.0,0.00024657,2]
[332527029,1721288047217,-519.29798103,0.00024657,2]
[332527030,1721288047585,-1445.6,0.00024657,2]
[332527031,1721288047596,-1211.24,0.00024657,2]
[332527032,1721288047606,-500.0,0.00024657,2]
[332527033,1721288047616,-764.9,0.00024657,2]
[332527034,1721288047625,-1017.79,0.00024657,2]
[332527035,1721288047635,-500.0,0.00024657,2]
[332527036,1721288047645,-819.77,0.00024657,2]
[332527037,1721288047658,-843.65,0.00024657,2]
[332527038,1721288047667,-508.09,0.00024657,2]
[332527039,1721288047677,-500.0,0.00024657,2]
[332527040,1721288047686,-4510.49,0.00024657,2]
[332527041,1721288047696,-1121.8,0.00024657,2]
[332527042,1721288047705,-500.0,0.00024657,2]
[332527043,1721288047714,-516.60239097,0.00024657,2]
[332527044,1721288047724,-615.98,0.00024657,2]
[332527045,1721288047734,-548.62,0.00024657,2]
[332527046,1721288047744,-732.51,0.00024657,2]
[332527047,1721288047753,-500.0,0.00024657,2]
[332527048,1721288047763,-727.51,0.00024657,2]
[332527049,1721288047772,-500.0,0.00024657,2]
[332527050,1721288047782,-699.69,0.00024657,2]
[332527051,1721288047792,-500.0,0.00024657,2]
[332527052,1721288047801,-780.84,0.00024657,2]
[332527053,1721288047811,-985.19,0.00024657,2]
[332527054,1721288047820,-500.0,0.00024657,2]
[332527055,1721288047829,-2219.16,0.00024657,2]
[332527056,1721288047839,-615.9091311,0.00024657,2]
[332527057,1721288047849,-661.47,0.00024657,2]
[332527058,1721288047859,-2008.64,0.00024657,2]
[332527059,1721288047869,-707.34,0.00024657,2]
[332527060,1721288047879,-776.84,0.00024657,2]
[332527061,1721288047889,-500.0,0.00024657,2]
[332527062,1721288047899,-502.35237195,0.00024657,2]
[332527063,1721288047908,-2197.33,0.00024657,2]
[332527064,1721288047918,-500.0,0.00024657,2]
[332527065,1721288047927,-512.46463067,0.00024657,2]
[332527066,1721288047937,-813.45,0.00024657,2]
[332527067,1721288047947,-6067.08,0.00024657,2]
[332527068,1721288047956,-1222.6,0.00024657,2]
[332527069,1721288047966,-685.95,0.00024657,2]
[332527070,1721288047976,-885.84,0.00024657,2]
[332527071,1721288047985,-500.0,0.00024657,2]
[332527072,1721288047995,-500.0,0.00024657,2]
[332527073,1721288048004,-589.04,0.00024657,2]
[332527074,1721288048014,-703.44,0.00024657,2]
[332527075,1721288048025,-919.77,0.00024657,2]
[332527076,1721288048035,-2956.08,0.00024657,2]
[332527077,1721288048045,-500.0,0.00024657,2]
[332527078,1721288048054,-699.95,0.00024657,2]
[332527079,1721288048064,-758.73,0.00024657,2]
[332527080,1721288048074,-500.0,0.00024657,2]
[332527081,1721288048083,-1023.99,0.00024657,2]
[332527082,1721288048093,-508.73724664,0.00024657,2]
[332527083,1721288048103,-500.0,0.00024657,2]
[332527084,1721288048113,-893.45,0.00024657,2]
[332527085,1721288048122,-1159.85,0.00024657,2]
[332527086,1721288048132,-500.0,0.00024657,2]
[332527087,1721288048143,-506.12904727,0.00024657,2]
[332527088,1721288048153,-502.53001187,0.00024657,2]
[332527089,1721288048163,-799.42,0.00024657,2]
[332527090,1721288048173,-500.0,0.00024657,2]
[332527091,1721288048183,-500.0,0.00024657,2]
[332527092,1721288048194,-510.551623,0.00024658,7]
[332527093,1721288048204,-510.551623,0.00024658,7]
[332527094,1721288048214,-510.551623,0.00024658,7]
[332527095,1721288048224,-510.551623,0.00024658,7]
[332527096,1721288048234,-510.551623,0.00024658,7]
[332527097,1721288048244,-510.551623,0.00024658,7]
[332527098,1721288048254,-510.551623,0.00024658,7]
[332527099,1721288048264,-510.551623,0.00024658,7]
[332527100,1721288048274,-510.551623,0.00024658,7]
[332527101,1721288048284,-510.551623,0.00024658,7]
[332527102,1721288048294,-510.551623,0.00024658,7]
[332527103,1721288048304,-510.551623,0.00024658,7]
[332527104,1721288048314,-510.551623,0.00024658,7]
[332527105,1721288048324,-510.551623,0.00024658,7]
[332527106,1721288048334,-510.551623,0.00024658,7]
[332527107,1721288048344,-510.551623,0.00024658,7]
[332527108,1721288048354,-510.551623,0.00024658,7]
[332527109,1721288048363,-510.551623,0.00024658,7]
[332527110,1721288048372,-510.551623,0.00024658,7]
[332527111,1721288048382,-510.55163,0.00024658,7]
[332527112,1721288048391,-371.32697632,0.00024659,2]
[332527113,1721288048400,-1794.38,0.0002467,2]
[332527114,1721288048411,-371.32697632,0.0002467,2]
[332527115,1721288048421,-805.34233156,0.00024676,2]
[332527116,1721288048430,-150.3,0.00024677,2]
[332527117,1721288048439,-229.62,0.0002469,2]
[332527118,1721288048450,-371.32697632,0.00024699,2]
[332527119,1721288048459,-2000.0,0.000247,2]
[332527120,1721288048470,-1013.98,0.000247,2]
[332527121,1721288048479,-550.98546928,0.00024701,2]
[332527122,1721288048489,-150.18315018,0.00024706,2]
[332527123,1721288048499,-2062.94975587,0.00024706,2]
[332527124,1721288048508,-150.18315024,0.00024721,2]
[332527125,1721288048518,-154.98095525,0.00024721,2]
[332527126,1721288048528,-200.0,0.00024727,2]
[332527127,1721288048538,-200.0,0.00024727,2]
[332527128,1721288048547,-500.0,0.00024735,2]
[332527129,1721288048557,-414.54398897,0.00024737,2]
[332527130,1721288048567,-11699.89421077,0.0002475,2]
[332527131,1721288048576,-161.89626353,0.00024756,2]
[332527132,1721288048587,-157.03911617,0.00024758,2]
[332527133,1721288048596,-166.6666667,0.00024771,2]
[332527134,1721288048605,-932.38,0.00024773,2]
[332527135,1721288048615,-500.0,0.00024777,2]
[332527136,1721288048624,-500.0,0.00024777,2]
[332527137,1721288048633,-500.0,0.00024778,2]
[332527138,1721288048643,-500.0,0.00024778,2]
[332527139,1721288048654,-500.48,0.00024778,2]
[332527140,1721288048665,-502.57,0.00024778,2]
[332527141,1721288048675,-166.66666668,0.00024782,2]
[332527142,1721288048684,-979.61,0.00024786,2]
[332527143,1721288048694,-5000.0,0.00024793,2]
[332527144,1721288048704,-150.0,0.00024802,2]
[332527145,1721288048714,-805.3423318,0.00024804,2]
[332527146,1721288048726,-157.03911617,0.00024809,2]
[332527147,1721288048737,-2399.93,0.00024814,2]
[332527148,1721288048747,-304.34,0.0002482,2]
[332527149,1721288048757,-267.41464615,0.00024837,2]
[332527150,1721288048767,-5000.0,0.00024841,2]
[332527151,1721288048776,-5000.0,0.00024841,2]
[332527152,1721288048786,-934.65578593,0.00024849,2]
[332527153,1721288048797,-2062.94975616,0.00024873,2]
[332527154,1721288048807,-934.65578608,0.00024875,2]
[332527155,1721288048816,-14783.9755045,0.0002488,2]
[332527156,1721288048827,-283.79483874,0.0002489,4]
[332527157,1721288048836,-2000.0,0.000249,2]
[332527158,1721288048846,-3000.0,0.000249,2]
[332527159,1721288048856,-954.82,0.00024917,7]
[332527160,1721288048866,-954.82,0.00024917,7]
[332527161,1721288048876,-256270.2660689,0.0002493,2]
[332527162,1721288048885,-500.0,0.00024931,2]
[332527163,1721288048897,-1548.92,0.00024931,2]
[332527164,1721288048906,-619.54281806,0.00024931,2]
[332527165,1721288048916,-500.0,0.00024931,2]
[332527166,1721288048925,-511.31159501,0.00024931,2]
[332527167,1721288048935,-500.0,0.00024931,2]
[332527168,1721288048945,-500.0,0.00024931,2]
[332527169,1721288048954,-903.45,0.00024931,2]
[332527170,1721288048964,-500.0,0.00024931,2]
[332527171,1721288048977,-873.73,0.00024931,2]
[332527172,1721288048988,-500.0,0.00024931,2]
[332527173,1721288048998,-1146.78,0.00024931,2]
[332527174,1721288049008,-500.0,0.00024931,2]
[332527175,1721288049018,-500.0,0.00024931,2]
[332527176,1721288049028,-500.0,0.00024931,2]
[332527177,1721288049038,-755.65,0.00024931,2]
[332527178,1721288049048,-1117.53,0.00024931,2]
[332527179,1721288049059,-1014.34,0.00024931,2]
[332527180,1721288049068,-247.953065,0.00024931,2]
[332527181,1721288049079,-500.0,0.00024931,2]
[332527182,1721288049089,-500.0,0.00024931,2]
[332527183,1721288049099,-500.0,0.00024931,2]
[332527184,1721288049109,-500.0,0.00024931,2]
[332527185,1721288049119,-926.9,0.00024931,2]
[332527186,1721288049129,-500.0,0.00024931,2]
[332527187,1721288049139,-559.52,0.00024931,2]
[332527188,1721288049149,-1202.57,0.00024931,2]
[332527189,1721288049160,-500.0,0.00024931,2]
[332527190,1721288049171,-686.6,0.00024931,2]
[332527191,1721288049181,-500.0,0.00024931,2]
[332527192,1721288049190,-698.02,0.00024931,2]
[332527193,1721288049201,-500.0,0.00024931,2]
[332527194,1721288049210,-500.0,0.00024931,2]
[332527195,1721288049227,-568.02,0.00024931,2]
[332527196,1721288049237,-500.0,0.00024931,2]
[332527197,1721288049247,-500.0,0.00024931,2]
[332527198,1721288049256,-500.0,0.00024931,2]
[332527199,1721288049266,-506.5,0.00024931,2]
[332527200,1721288049276,-579.89,0.00024931,2]
[332527201,1721288049285,-888.04,0.00024931,2]
[332527202,1721288049294,-877.77,0.00024931,2]
[332527203,1721288049304,-500.0,0.00024931,2]
[332527204,1721288049313,-500.0,0.00024931,2]
[332527205,1721288049322,-500.0,0.00024931,2]
[332527206,1721288049332,-500.0,0.00024931,2]
[332527207,1721288049341,-689.95,0.00024931,2]
[332527208,1721288049351,-500.0,0.00024931,2]
[332527209,1721288049360,-887.13,0.00024931,2]
[332527210,1721288049370,-512.75,0.00024931,2]
[332527211,1721288049379,-512.62296601,0.00024931,2]
[332527212,1721288049389,-500.0,0.00024931,2]
[332527213,1721288049399,-918.48,0.00024931,2]
[332527214,1721288049408,-500.0,0.00024931,2]
[332527215,1721288049419,-275.04587774,0.00024931,2]
[332527216,1721288049428,-500.0,0.00024931,2]
[332527217,1721288049438,-1130.16,0.00024931,2]
[332527218,1721288049447,-500.0,0.00024931,2]
[332527219,1721288049457,-500.0,0.00024931,2]
[332527220,1721288049471,-1018.39,0.00024931,2]
[332527221,1721288049480,-500.0,0.00024931,2]
[332527222,1721288049490,-500.0,0.00024931,2]
[332527223,1721288049500,-582.9,0.00024931,2]
[332527224,1721288049510,-500.0,0.00024931,2]
[332527225,1721288049519,-500.0,0.00024931,2]
[332527226,1721288049529,-500.0,0.00024931,2]
[332527227,1721288049539,-629.0,0.00024931,2]
[332527228,1721288049548,-242.31860952,0.00024931,2]
[332527229,1721288049558,-682.95,0.00024931,2]
[332527230,1721288049568,-1036.97,0.00024931,2]
[332527231,1721288049578,-506.35754806,0.00024931,2]
[332527232,1721288049588,-463.67325575,0.00024931,2]
[332527233,1721288049598,-313.8,0.00024931,2]
[332527234,1721288049608,-688.35,0.00024931,2]
[332527235,1721288049618,-500.0,0.00024931,2]
[332527236,1721288049628,-500.0,0.00024931,2]
[332527237,1721288049638,-851.26,0.00024931,2]
[332527238,1721288049648,-1046.3,0.00024931,2]
[332527239,1721288049662,-500.0,0.00024931,2]
[332527240,1721288049671,-988.22,0.00024931,2]
[332527241,1721288049681,-500.0,0.00024931,2]
[332527242,1721288049692,-500.0,0.00024931,2]
[332527243,1721288049702,-500.0,0.00024931,2]
[332527244,1721288049712,-864.94,0.00024931,2]
[332527245,1721288049725,-704.02,0.00024931,2]
[332527246,1721288049737,-500.0,0.00024931,2]
[332527247,1721288049746,-791.51,0.00024931,2]
[332527248,1721288049756,-326.07675075,0.00024931,2]
[332527249,1721288049766,-637.96,0.00024931,2]
[332527250,1721288049775,-645.57,0.00024931,2]
[332527251,1721288049785,-500.0,0.00024931,2]
[332527252,1721288049794,-632.83,0.00024931,2]
[332527253,1721288049804,-654.28,0.00024931,2]
[332527254,1721288049813,-673.07,0.00024931,2]
[332527255,1721288049823,-616.18,0.00024931,2]
[332527256,1721288049833,-500.0,0.00024931,2]
[332527257,1721288049842,-530.94,0.00024931,2]
[332527258,1721288049853,-527.98,0.00024931,2]
[332527259,1721288049863,-547.08,0.00024931,2]
[332527260,1721288049873,-559.75,0.00024931,2]
[332527261,1721288049883,-501.04733453,0.00024931,2]
[332527262,1721288049893,-500.0,0.00024931,2]
[332527263,1721288049904,-500.0,0.00024931,2]
[332527264,1721288049914,-503.58979521,0.00024931,2]
[332527265,1721288049924,-500.0,0.00024931,2]
[332527266,1721288049934,-611.76,0.00024931,2]
[332527267,1721288049944,-1173.23,0.00024931,2]
[332527268,1721288049954,-182.7891417,0.00024931,2]
[332527269,1721288049965,-709.13,0.00024931,2]
[332527270,1721288049978,-753.22,0.00024931,2]
[332527271,1721288049988,-508.52289653,0.00024931,2]
[332527272,1721288049997,-500.0,0.00024931,2]
[332527273,1721288050146,-500.0,0.00024931,2]
[332527274,1721288050156,-571.73,0.00024931,2]
[332527275,1721288050166,-500.0,0.00024931,2]
[332527276,1721288050175,-500.0,0.00024931,2]
[332527277,1721288050186,-500.0,0.00024931,2]
[332527278,1721288050195,-500.0,0.00024931,2]
[332527279,1721288050205,-771.42,0.00024931,2]
[332527280,1721288050215,-679.34,0.00024931,2]
[332527281,1721288050227,-393.7,0.00024931,2]
[332527282,1721288050237,-500.0,0.00024931,2]
[332527283,1721288050247,-500.0,0.00024931,2]
[332527284,1721288050257,-500.0,0.00024931,2]
[332527285,1721288050267,-500.0,0.00024931,2]
[332527286,1721288050277,-500.0,0.00024931,2]
[332527287,1721288050287,-1055.96,0.00024931,2]
[332527288,1721288050296,-500.0,0.00024931,2]
[332527289,1721288050305,-500.0,0.00024931,2]
[332527290,1721288050315,-500.0,0.00024931,2]
[332527291,1721288050325,-500.0,0.00024931,2]
[332527292,1721288050335,-756.04,0.00024931,2]
[332527293,1721288050345,-703.28,0.00024931,2]
[332527294,1721288050354,-750.7,0.00024931,2]
[332527295,1721288050364,-500.0,0.00024931,2]
[332527296,1721288050374,-500.0,0.00024931,2]
[332527297,1721288050384,-500.0,0.00024931,2]
[332527298,1721288050394,-1168.54,0.00024931,2]
[332527299,1721288050403,-500.0,0.00024931,2]
[332527300,1721288050412,-368.15821878,0.00024931,2]
[332527301,1721288050422,-500.0,0.00024931,2]
[332527302,1721288050431,-472.69853695,0.00024931,2]
[332527303,1721288050441,-500.0,0.00024931,2]
[332527304,1721288050450,-1538.77,0.00024931,2]
[332527305,1721288050460,-926.42,0.00024931,2]
[332527306,1721288050475,-1335.62,0.00024931,2]
[332527307,1721288050485,-1229.0,0.00024931,2]
[332527308,1721288050494,-500.0,0.00024931,2]
[332527309,1721288050504,-500.0,0.00024931,2]
[332527310,1721288050518,-984.25,0.00024931,2]
[332527311,1721288050527,-1387.55,0.00024931,2]
[332527312,1721288050536,-500.0,0.00024931,2]
[332527313,1721288050545,-925.35,0.00024931,2]
[332527314,1721288050555,-500.0,0.00024931,2]
[332527315,1721288050564,-542.52,0.00024931,2]
[332527316,1721288050574,-500.0,0.00024931,2]
[332527317,1721288050583,-500.0,0.00024931,2]
[332527318,1721288050592,-539.38592323,0.00024931,2]
[332527319,1721288050602,-500.0,0.00024931,2]
[332527320,1721288050612,-1699.26,0.00024931,2]
[332527321,1721288050621,-542.08,0.00024931,2]
[332527322,1721288050631,-500.0,0.00024931,2]
[332527323,1721288050640,-560.08,0.00024931,2]
[332527324,1721288050650,-500.0,0.00024931,2]
[332527325,1721288050663,-500.0,0.00024931,2]
[332527326,1721288050673,-500.0,0.00024931,2]
[332527327,1721288050683,-512.57494421,0.00024931,2]
[332527328,1721288050693,-500.0,0.00024931,2]
[332527329,1721288050702,-500.0,0.00024931,2]
[332527330,1721288050711,-500.0,0.00024931,2]
[332527331,1721288050725,-1355.83,0.00024931,2]
[332527332,1721288050736,-505.95,0.00024931,2]
[332527333,1721288050745,-500.0,0.00024931,2]
[332527334,1721288050755,-500.0,0.00024931,2]
[332527335,1721288050764,-628.74,0.00024931,2]
[332527336,1721288050773,-500.0,0.00024931,2]
[332527337,1721288050783,-500.0,0.00024931,2]
[332527338,1721288050792,-676.4,0.00024931,2]
[332527339,1721288050801,-538.06,0.00024931,2]
[332527340,1721288050810,-500.0,0.00024931,2]
[332527341,1721288050820,-1065.58,0.00024931,2]
[332527342,1721288050830,-500.0,0.00024931,2]
[332527343,1721288050839,-1408.6,0.00024931,7]
[332527344,1721288050849,-872.67,0.00024931,2]
[332527345,1721288050859,-1348.92,0.00024931,2]
[332527346,1721288050869,-838.7,0.00024931,2]
[332527347,1721288050879,-500.0,0.00024931,2]
[332527348,1721288050889,-503.03,0.00024931,2]
[332527349,1721288050898,-500.0,0.00024931,2]
[332527350,1721288050909,-500.0,0.00024931,2]
[332527351,1721288050919,-414.6779894,0.00024931,2]
[332527352,1721288050930,-405.67840643,0.00024931,2]
[332527353,1721288050940,-500.0,0.00024931,2]
[332527354,1721288050950,-500.0,0.00024931,2]
[332527355,1721288050962,-802.6,0.00024931,2]
[332527356,1721288050974,-500.0,0.00024931,2]
[332527357,1721288050984,-579.37,0.00024931,2]
[332527358,1721288050994,-780.83,0.00024931,2]
[332527359,1721288051004,-529.91,0.00024931,2]
[332527360,1721288051014,-781.35,0.00024931,2]
[332527361,1721288051023,-724.1,0.00024931,2]
[332527362,1721288051033,-500.0,0.00024931,2]
[332527363,1721288051045,-500.0,0.00024931,2]
[332527364,1721288051056,-568.82,0.00024931,2]
[332527365,1721288051066,-500.0,0.00024931,2]
[332527366,1721288051077,-1287.42,0.00024931,2]
[332527367,1721288051087,-500.0,0.00024931,2]
[332527368,1721288051096,-771.73,0.00024931,2]
[332527369,1721288051106,-1353.92,0.00024931,2]
[332527370,1721288051116,-1387.82,0.00024931,2]
[332527371,1721288051126,-500.0,0.00024931,2]
[332527372,1721288051136,-500.0,0.00024931,2]
[332527373,1721288051146,-553.81,0.00024931,2]
[332527374,1721288051156,-500.0,0.00024931,2]
[332527375,1721288051165,-500.0,0.00024931,2]
[332527376,1721288051175,-500.0,0.00024931,2]
[332527377,1721288051185,-500.0,0.00024931,2]
[332527378,1721288051195,-682.98,0.00024931,2]
[332527379,1721288051205,-911.72,0.00024931,2]
[332527380,1721288051215,-819.38,0.00024931,2]
[332527381,1721288051226,-972.31,0.00024931,2]
[332527382,1721288051236,-500.0,0.00024931,2]
[332527383,1721288051246,-505.24879804,0.00024931,2]
[332527384,1721288051255,-1109.76,0.00024931,2]
[332527385,1721288051265,-500.0,0.00024931,2]
[332527386,1721288051275,-836.26,0.00024931,2]
[332527387,1721288051284,-508.23851405,0.00024931,2]
[332527388,1721288051294,-544.15,0.00024931,2]
[332527389,1721288051304,-500.0,0.00024931,2]
[332527390,1721288051313,-744.75,0.00024931,2]
[332527391,1721288051322,-659.68,0.00024931,2]
[332527392,1721288051332,-1074.46,0.00024931,2]
[332527393,1721288051342,-918.1,0.00024931,2]
[332527394,1721288051352,-637.37,0.00024931,2]
[332527395,1721288051361,-500.0,0.00024931,2]
[332527396,1721288051371,-505.08880111,0.00024931,2]
[332527397,1721288051380,-941.47,0.00024931,2]
[332527398,1721288051389,-1715.0,0.00024931,2]
[332527399,1721288051399,-808.27,0.00024931,2]
[332527400,1721288051408,-500.0,0.00024931,2]
[332527401,1721288051418,-543.92,0.00024931,2]
[332527402,1721288051427,-848.98,0.00024931,2]
[332527403,1721288051437,-500.77726509,0.00024931,2]
[332527404,1721288051447,-500.0,0.00024931,2]
[332527405,1721288051456,-702.02,0.00024931,2]
[332527406,1721288051467,-833.62,0.00024931,2]
[332527407,1721288051478,-747.03,0.00024931,2]
[332527408,1721288051487,-694.12,0.00024931,2]
[332527409,1721288051497,-1393.96,0.00024931,2]
[332527410,1721288051506,-923.3,0.00024931,2]
[332527411,1721288051516,-864.51,0.00024931,2]
[332527412,1721288051526,-874.63,0.00024931,2]
[332527413,1721288051535,-572.13,0.00024931,2]
[332527414,1721288051545,-500.0,0.00024931,2]
[332527415,1721288051555,-768.44,0.00024931,2]
[332527416,1721288051565,-919.94,0.00024931,2]
[332527417,1721288051575,-500.0,0.00024931,2]
[332527418,1721288051585,-500.0,0.00024931,2]
[332527419,1721288051594,-500.0,0.00024931,2]
[332527420,1721288051604,-500.0,0.00024931,2]
[332527421,1721288051614,-500.0,0.00024931,2]
[332527422,1721288051624,-509.81813516,0.00024931,2]
[332527423,1721288051634,-525.57800354,0.00024931,2]
[332527424,1721288051643,-567.01,0.00024931,2]
[332527425,1721288051655,-750.97,0.00024931,2]
[332527426,1721288051667,-500.0,0.00024931,2]
[332527427,1721288051677,-664.81,0.00024931,2]
[332527428,1721288051686,-500.0,0.00024931,2]
[332527429,1721288051697,-1439.37,0.00024931,2]
[332527430,1721288051706,-820.24,0.00024931,2]
[332527431,1721288051716,-500.0,0.00024931,2]
[332527432,1721288051728,-500.0,0.00024931,2]
[332527433,1721288051739,-659.88,0.00024931,2]
[332527434,1721288051748,-500.0,0.00024931,2]
[332527435,1721288051758,-675.36,0.00024931,2]
[332527436,1721288051768,-500.0,0.00024931,2]
[332527437,1721288051777,-1239.37,0.00024931,2]
[332527438,1721288051787,-505.2094246,0.00024931,2]
[332527439,1721288051796,-587.43,0.00024931,2]
[332527440,1721288051806,-500.0,0.00024931,2]
[332527441,1721288051816,-500.0,0.00024931,2]
[332527442,1721288051825,-180.0584705,0.00024931,2]
[332527443,1721288051835,-568.14154876,0.00024931,2]
[332527444,1721288051845,-1037.75,0.00024931,2]
[332527445,1721288051855,-1312.95,0.00024931,2]
[332527446,1721288051865,-500.0,0.00024931,2]
[332527447,1721288051875,-500.0,0.00024931,2]
[332527448,1721288051885,-1508.18,0.00024931,2]
[332527449,1721288051894,-759.36,0.00024931,2]
[332527450,1721288051904,-500.0,0.00024931,2]
[332527451,1721288051913,-589.69,0.00024931,2]
[332527452,1721288051922,-589.59,0.00024931,2]
[332527453,1721288051932,-500.0,0.00024931,2]
[332527454,1721288051942,-500.0,0.00024931,2]
[332527455,1721288051952,-519.36,0.00024931,2]
[332527456,1721288051962,-465.48,0.00024931,2]
[332527457,1721288051974,-500.0,0.00024931,2]
[332527458,1721288051983,-500.0,0.00024931,2]
[332527459,1721288051993,-500.0,0.00024931,2]
[332527460,1721288052003,-1570.3,0.00024931,2]
[332527461,1721288052014,-500.0,0.00024931,2]
[332527462,1721288052024,-500.0,0.00024931,2]
[332527463,1721288052034,-500.0,0.00024931,2]
[332527464,1721288052043,-500.0,0.00024931,2]
[332527465,1721288052053,-684.5,0.00024931,2]
[332527466,1721288052063,-500.0,0.00024931,2]
[332527467,1721288052072,-778.25,0.00024931,2]
[332527468,1721288052082,-1825.46,0.00024931,2]
[332527469,1721288052092,-240.85422347,0.00024931,2]
[332527470,1721288052102,-647.56,0.00024931,2]
[332527471,1721288052112,-1501.12,0.00024931,2]
[332527472,1721288052122,-500.0,0.00024931,2]
[332527473,1721288052131,-500.0,0.00024931,2]
[332527474,1721288052140,-649.76,0.00024931,2]
[332527475,1721288052150,-698.16,0.00024931,2]
[332527476,1721288052159,-500.0,0.00024931,2]
[332527477,1721288052169,-500.0,0.00024931,2]